[Event "-chT Youth Countries 2019"]
[Site "Wuerzburg"]
[Date "2019.10.06"]
[Round "7.3"]
[White "Pallas, Sebastian"]
[Black "Sulayev, Daniel"]
[Result "1/2-1/2"]
[ECO "B32"]
[WhiteElo "2291"]
[BlackElo "2149"]
[Annotator "ChessBase"]
[PlyCount "58"]
[EventDate "2019.10.02"]
[EventType "team-tourn"]
[EventRounds "7"]
[EventCountry "GER"]
[SourceTitle "playchess.com"]
[Source "ChessBase"]
[SourceQuality "1"]
[WhiteTeam "Sachsen-Anhalt"]
[BlackTeam "Berlin"]
[TimeControl "40/5400+30:1800+30"]

1. e4 {[%emt 0:00:00]} c5 {[%emt 0:00:00]} 2. Nf3 {[%emt 0:00:06]} Nc6 {[%emt 0:00:00]} 3. d4 {[%emt 0:00:15]} cxd4 {[%emt 0:00:05]} 4. Nxd4 {[%emt 0:00:09]} e5 {[%emt 0:00:10]} 5. Nb5 {[%emt 0:01:52]} d6 {[%emt 0:01:19]} 6. N1c3 {[%emt 0:01:56]} a6 {[%emt 0:00:21]} 7. Na3 {[%emt 0:00:04]} Be6 {[%emt 0:00:33]} 8. Nc4 {[%emt 0:03:51]} b5 {[%emt 0:01:30]} 9. Ne3 {[%emt 0:00:06]} Nf6 {[%emt 0:00:16]} 10. Bd3 {[%emt 0:02:29]} Be7 {[%emt 0:02:22]} 11. O-O {[%emt 0:00:22]} O-O {[%emt 0:00:34]} 12. Ncd5 {[%emt 0:11:36]} Nd7 {[%emt 0:01:59]} 13. c3 {[%emt 0:17:11]} Bg5 {[%emt 0:10:15]} 14. Bc2 {[%emt 0:01:40]} Rb8 {[%emt 0:18:44]} 15. Qf3 {[%emt 0:05:25]} g6 {[%emt 0:02:54]} 16. Rd1 {[%emt 0:02:07]} a5 {[%emt 0:18:08]} 17. g3 {[%emt 0:03:05]} Nc5 {[%emt 0:01:11]} 18. h4 {[%emt 0:02:38]} Bh6 {[%emt 0:02:24]} 19. Nf6+ {[%emt 0:08:54]} Kg7 {[%emt 0:01:00]} 20. Nf5+ {[%emt 0:09:09]} Bxf5 {[%emt 0:01:18]} 21. Bxh6+ {[%emt 0:00:04]} Kxh6 {[%emt 0:00:10]} 22. exf5 {[%emt 0:00:23]} Qxf6 {[%emt 0:01:30]} 23. g4 {[%emt 0:02:17]} Qxh4 {[%emt 0:02:08]} 24. Kg2 {[%emt 0:01:50]} e4 {[%emt 0:09:02]} 25. Qf4+ {[%emt 0:10:07]} g5 {[%emt 0:00:38]} 26. Qxd6+ {[%emt 0:00:20]} Kg7 {[%emt 0:00:06]} 27. Qxc5 {[%emt 0:00:42]} Qxg4+ {[%emt 0:00:16]} 28. Kf1 {[%emt 0:00:28]} Qh3+ {[%emt 0:02:04]} 29. Kg1 {[%emt 0:00:30]} Qg4+ {[%emt 0:00:16] normal} 1/2-1/2

[Event "-chT Youth Countries 2019"]
[Site "Wuerzburg"]
[Date "2019.10.06"]
[Round "7.3"]
[White "Weber, Samuel"]
[Black "Jakob, Georg"]
[Result "0-1"]
[ECO "B20"]
[WhiteElo "2288"]
[BlackElo "1952"]
[Annotator "ChessBase"]
[PlyCount "72"]
[EventDate "2019.10.02"]
[EventType "team-tourn"]
[EventRounds "7"]
[EventCountry "GER"]
[SourceTitle "playchess.com"]
[Source "ChessBase"]
[SourceQuality "1"]
[WhiteTeam "Hessen"]
[BlackTeam "Team Süd"]
[TimeControl "40/5400+30:1800+30"]

1. e4 {[%emt 0:01:19]} c5 {[%emt 0:00:00]} 2. c4 {[%emt 0:01:24]} g6 {[%emt 0:00:00]} 3. g3 {[%emt 0:00:04]} Bg7 {[%emt 0:00:00]} 4. Bg2 {[%emt 0:00:06]} Nc6 {[%emt 0:00:00]} 5. Nc3 {[%emt 0:00:07]} d6 {[%emt 0:00:46]} 6. Nge2 {[%emt 0:00:20]} Nf6 {[%emt 0:00:06]} 7. d3 {[%emt 0:00:16]} O-O {[%emt 0:00:17]} 8. O-O {[%emt 0:00:46]} Ne8 {[%emt 0:00:10]} 9. Be3 {[%emt 0:00:23]} Nd4 {[%emt 0:00:23]} 10. Rb1 {[%emt 0:01:49]} a5 {[%emt 0:02:08]} 11. Nb5 {[%emt 0:06:55]} Nxe2+ {[%emt 0:14:05]} 12. Qxe2 {[%emt 0:00:03]} Nc7 {[%emt 0:00:11]} 13. a4 {[%emt 0:04:22]} Ne6 {[%emt 0:03:12]} 14. Qd2 {[%emt 0:03:26]} Nd4 {[%emt 0:01:00]} 15. Nxd4 {[%emt 0:04:33]} cxd4 {[%emt 0:01:30]} 16. Bh6 {[%emt 0:00:08]} Bd7 {[%emt 0:03:51]} 17. Bxg7 {[%emt 0:02:45]} Kxg7 {[%emt 0:03:23]} 18. b4 {[%emt 0:07:35]} axb4 {[%emt 0:08:29]} 19. Rxb4 {[%emt 0:02:16]} Rxa4 {[%emt 0:08:07]} 20. Rxa4 {[%emt 0:01:53]} Bxa4 {[%emt 0:00:10]} 21. Qb2 {[%emt 0:02:14]} e5 {[%emt 0:05:20]} 22. Qxb7 {[%emt 0:00:10]} Bc2 {[%emt 0:07:05]} 23. Qd5 {[%emt 0:00:09]} Bxd3 {[%emt 0:01:06]} 24. Rd1 {[%emt 0:02:31]} Be2 {[%emt 0:01:20]} 25. Rd2 {[%emt 0:05:50]} d3 {[%emt 0:06:03]} 26. Bf1 {[%emt 0:05:08]} Qg5 {[%emt 0:02:15]} 27. f4 {[%emt 0:00:47]} Qh5 {[%emt 0:00:37]} 28. Rxd3 {[%emt 0:20:34]} Bxd3 {[%emt 0:04:05]} 29. Qxd3 {[%emt 0:00:04]} exf4 {[%emt 0:00:27]} 30. Qxd6 {[%emt 0:00:57]} fxg3 {[%emt 0:00:56]} 31. hxg3 {[%emt 0:00:21]} Re8 {[%emt 0:01:49]} 32. Bg2 {[%emt 0:03:10]} Qe5 {[%emt 0:00:23]} 33. Qxe5+ {[%emt 0:08:42]} Rxe5 {[%emt 0:00:32]} 34. Kf2 {[%emt 0:00:03]} Rc5 {[%emt 0:01:03]} 35. Bf1 {[%emt 0:03:32]} Kf6 {[%emt 0:00:12]} 36. Ke3 {[%emt 0:00:14]} Ke5 {[%emt 0:00:37] normal Kd4+} 0-1

[Event "-chT Youth Countries 2019"]
[Site "Wuerzburg"]
[Date "2019.10.06"]
[Round "7.3"]
[White "Goldbeck, Lars"]
[Black "Gallasch, Jonas"]
[Result "1/2-1/2"]
[ECO "D90"]
[WhiteElo "2203"]
[BlackElo "2099"]
[Annotator "ChessBase"]
[PlyCount "45"]
[EventDate "2019.10.02"]
[EventType "team-tourn"]
[EventRounds "7"]
[EventCountry "GER"]
[SourceTitle "playchess.com"]
[Source "ChessBase"]
[SourceQuality "1"]
[WhiteTeam "Bayern 1"]
[BlackTeam "Nordrhein-Westfalen"]
[TimeControl "40/5400+30:1800+30"]

1. d4 {[%emt 0:00:00]} Nf6 {[%emt 0:00:32]} 2. c4 {[%emt 0:00:00]} g6 {[%emt 0:00:48]} 3. Nc3 {[%emt 0:00:00]} d5 {[%emt 0:00:18]} 4. Nf3 {[%emt 0:00:00]} Bg7 {[%emt 0:00:07]} 5. h4 {[%emt 0:00:00]} h6 {[%emt 0:08:00]} 6. cxd5 {[%emt 0:10:09]} Nxd5 {[%emt 0:00:18]} 7. e4 {[%emt 0:00:04]} Nxc3 {[%emt 0:00:08]} 8. bxc3 {[%emt 0:00:02]} c5 {[%emt 0:00:18]} 9. Be3 {[%emt 0:00:04]} Qa5 {[%emt 0:02:07]} 10. Nd2 {[%emt 0:13:12]} cxd4 {[%emt 0:03:56]} 11. Nc4 {[%emt 0:03:50]} Qd8 {[%emt 0:20:34]} 12. cxd4 {[%emt 0:01:50]} O-O {[%emt 0:00:47]} 13. Be2 {[%emt 0:13:10]} Nc6 {[%emt 0:12:21]} 14. d5 {[%emt 0:04:43]} Nb4 {[%emt 0:02:05]} 15. Rb1 {[%emt 0:21:40]} Nxa2 {[%emt 0:00:42]} 16. Rb3 {[%emt 0:01:49]} Nc3 {[%emt 0:02:04]} 17. Qc1 {[%emt 0:01:18]} Nxe2 {[%emt 0:01:54]} 18. Kxe2 {[%emt 0:00:07]} h5 {[%emt 0:01:38]} 19. Bh6 {[%emt 0:07:06]} Qd7 {[%emt 0:19:22]} 20. f3 {[%emt 0:10:27]} b6 {[%emt 0:11:35]} 21. Bxg7 {[%emt 0:01:59]} Kxg7 {[%emt 0:00:09]} 22. Kf2 {[%emt 0:01:44]} Bb7 {[%emt 0:02:56]} 23. Qg5 {[%emt 0:01:49] normal} 1/2-1/2

[Event "-chT Youth Countries 2019"]
[Site "Wuerzburg"]
[Date "2019.10.06"]
[Round "7.3"]
[White "Stelmaszyk, Nico"]
[Black "Kololli, Martin"]
[Result "0-1"]
[ECO "B27"]
[WhiteElo "2190"]
[BlackElo "2310"]
[Annotator "ChessBase"]
[PlyCount "56"]
[EventDate "2019.10.02"]
[EventType "team-tourn"]
[EventRounds "7"]
[EventCountry "GER"]
[SourceTitle "playchess.com"]
[Source "ChessBase"]
[SourceQuality "1"]
[WhiteTeam "Niedersachsen"]
[BlackTeam "Schleswig-Holstein"]
[TimeControl "40/5400+30:1800+30"]

1. e4 {[%emt 0:00:00]} c5 {[%emt 0:00:00]} 2. Nf3 {[%emt 0:00:05]} g6 {[%emt 0:00:00]} 3. d3 {[%emt 0:07:07]} Bg7 {[%emt 0:01:55]} 4. Nc3 {[%emt 0:00:08]} d6 {[%emt 0:01:19]} 5. g3 {[%emt 0:00:21]} Nc6 {[%emt 0:01:47]} 6. Bg2 {[%emt 0:00:06]} Nf6 {[%emt 0:01:39]} 7. O-O {[%emt 0:00:43]} O-O {[%emt 0:00:11]} 8. Bg5 {[%emt 0:02:22]} h6 {[%emt 0:02:28]} 9. Bd2 {[%emt 0:05:24]} Rb8 {[%emt 0:09:17]} 10. Nh4 {[%emt 0:02:58]} b5 {[%emt 0:04:45]} 11. f4 {[%emt 0:01:57]} Bg4 {[%emt 0:00:46]} 12. Bf3 {[%emt 0:07:15]} Bxf3 {[%emt 0:02:57]} 13. Nxf3 {[%emt 0:00:24]} b4 {[%emt 0:04:58]} 14. Ne2 {[%emt 0:02:51]} Qc8 {[%emt 0:05:39]} 15. Qc1 {[%emt 0:07:32]} Kh7 {[%emt 0:04:08]} 16. c4 {[%emt 0:14:01]} bxc3 {[%emt 0:00:39]} 17. Bxc3 {[%emt 0:00:26]} Qa6 {[%emt 0:04:48]} 18. Qd2 {[%emt 0:06:11]} c4 {[%emt 0:09:51]} 19. e5 {[%emt 0:08:16]} dxe5 {[%emt 0:01:53]} 20. fxe5 {[%emt 0:00:22]} cxd3 {[%emt 0:02:19]} 21. exf6 {[%emt 0:03:35]} dxe2 {[%emt 0:00:07]} 22. fxg7 {[%emt 0:20:07]} exf1=Q+ {[%emt 0:00:22]} 23. Rxf1 {[%emt 0:00:07]} Rg8 {[%emt 0:14:27]} 24. Qd7 {[%emt 0:06:33]} Qb6+ {[%emt 0:03:50]} 25. Kh1 {[%emt 0:01:19]} Qc5 {[%emt 0:01:06]} 26. Qh3 {[%emt 0:01:25]} f6 {[%emt 0:01:58]} 27. Bd2 {[%emt 0:00:17]} h5 {[%emt 0:00:45]} 28. g4 {[%emt 0:01:15]} Rxg7 {[%emt 0:01:06] normal} 0-1

[Event "-chT Youth Countries 2019"]
[Site "Wuerzburg"]
[Date "2019.10.06"]
[Round "7.3"]
[White "Dahl, Christoph"]
[Black "Musiolik, David"]
[Result "1-0"]
[ECO "C18"]
[WhiteElo "2178"]
[BlackElo "2195"]
[Annotator "ChessBase"]
[PlyCount "121"]
[EventDate "2019.10.02"]
[EventType "team-tourn"]
[EventRounds "7"]
[EventCountry "GER"]
[SourceTitle "playchess.com"]
[Source "ChessBase"]
[SourceQuality "1"]
[WhiteTeam "Sachsen"]
[BlackTeam "Rheinland-Pfalz"]
[TimeControl "40/5400+30:1800+30"]

1. e4 {[%emt 0:00:00]} e6 {[%emt 0:00:00]} 2. d4 {[%emt 0:00:06]} d5 {[%emt 0:00:07]} 3. Nc3 {[%emt 0:00:26]} Bb4 {[%emt 0:00:39]} 4. e5 {[%emt 0:00:53]} c5 {[%emt 0:00:06]} 5. a3 {[%emt 0:00:32]} Bxc3+ 6. bxc3 Ne7 {[%emt 0:00:25]} 7. Qg4 {[%emt 0:00:45]} O-O {[%emt 0:00:13]} 8. Bd3 {[%emt 0:00:30]} f5 {[%emt 0:00:15]} 9. exf6 {[%emt 0:00:25]} Rxf6 {[%emt 0:00:17]} 10. Bg5 {[%emt 0:00:39]} Rf7 {[%emt 0:00:13]} 11. Qh5 {[%emt 0:00:45]} g6 {[%emt 0:00:30]} 12. Qd1 {[%emt 0:00:52]} Qa5 {[%emt 0:01:12]} 13. Qd2 {[%emt 0:01:12]} Nbc6 {[%emt 0:00:37]} 14. Nf3 {[%emt 0:01:46]} Bd7 {[%emt 0:16:15]} 15. Ne5 {[%emt 0:03:10]} Nxe5 {[%emt 0:00:42]} 16. dxe5 {[%emt 0:00:01]} d4 {[%emt 0:19:07]} 17. cxd4 {[%emt 0:02:23]} Qxd2+ {[%emt 0:00:42]} 18. Bxd2 {[%emt 0:00:18]} cxd4 {[%emt 0:00:06]} 19. Bg5 {[%emt 0:01:06]} Bc6 {[%emt 0:03:57]} 20. f3 {[%emt 0:02:10]} Nd5 {[%emt 0:02:01]} 21. h4 {[%emt 0:01:55]} Nf4 {[%emt 0:05:39]} 22. Bxf4 {[%emt 0:00:53]} Rxf4 {[%emt 0:00:07]} 23. h5 {[%emt 0:08:20]} Kg7 {[%emt 0:02:57]} 24. hxg6 {[%emt 0:01:04]} hxg6 {[%emt 0:00:08]} 25. Kf2 {[%emt 0:01:07]} Rg8 {[%emt 0:17:46]} 26. Rh3 {[%emt 0:06:00]} Be8 {[%emt 0:05:27]} 27. Rah1 {[%emt 0:01:48]} Kf8 {[%emt 0:05:50]} 28. Rh4 {[%emt 0:05:33]} Rxh4 {[%emt 0:02:41]} 29. Rxh4 {[%emt 0:00:01]} Ke7 {[%emt 0:01:40]} 30. Rxd4 {[%emt 0:00:25]} Bd7 {[%emt 0:06:02]} 31. Rc4 {[%emt 0:04:05]} Bc6 {[%emt 0:01:13]} 32. Rg4 {[%emt 0:03:25]} g5 {[%emt 0:00:48]} 33. Ke3 {[%emt 0:05:18]} Bd5 {[%emt 0:01:26]} 34. c4 {[%emt 0:00:37]} Bc6 {[%emt 0:00:15]} 35. Be4 {[%emt 0:00:15]} Kd7 {[%emt 0:01:37]} 36. Kd4 {[%emt 0:02:04]} Bxe4 {[%emt 0:00:51]} 37. Kxe4 {[%emt 0:00:01]} b6 {[%emt 0:01:08]} 38. Kd4 {[%emt 0:01:43]} Ke7 {[%emt 0:00:26]} 39. Kc3 {[%emt 0:01:44]} Kf7 {[%emt 0:01:01]} 40. f4 {[%emt 0:02:01]} gxf4 {[%emt 0:00:43]} 41. Rxg8 {[%emt 0:30:41]} Kxg8 {[%emt 0:30:02]} 42. Kd4 {[%emt 0:00:08]} Kf7 {[%emt 0:00:00]} 43. Ke4 {[%emt 0:00:00]} Kg6 {[%emt 0:00:00]} 44. Kxf4 {[%emt 0:00:00]} Kh5 {[%emt 0:00:00]} 45. g4+ {[%emt 0:00:00]} Kg6 {[%emt 0:00:00]} 46. a4 {[%emt 0:00:00]} Kh6 {[%emt 0:00:00]} 47. a5 Kg6 {[%emt 0:00:00]} 48. axb6 {[%emt 0:00:00]} axb6 {[%emt 0:00:00]} 49. Kf3 {[%emt 0:00:00]} Kh6 {[%emt 0:00:00]} 50. Kg2 {[%emt 0:00:00]} Kg6 {[%emt 0:00:00]} 51. Kh3 {[%emt 0:00:00]} Kg5 {[%emt 0:00:00]} 52. Kg3 {[%emt 0:00:00]} Kh6 {[%emt 0:00:00]} 53. Kh4 {[%emt 0:00:00]} Kg6 {[%emt 0:00:00]} 54. g5 {[%emt 0:00:00]} Kg7 {[%emt 0:00:00]} 55. Kh5 {[%emt 0:00:00]} Kh7 {[%emt 0:00:00]} 56. g6+ {[%emt 0:00:00]} Kg8 {[%emt 0:00:00]} 57. Kh6 {[%emt 0:00:00]} Kh8 {[%emt 0:00:00]} 58. g7+ {[%emt 0:00:00]} Kg8 {[%emt 0:00:00]} 59. Kg6 {[%emt 0:00:00]} b5 {[%emt 0:00:00]} 60. c5 {[%emt 0:00:00]} b4 {[%emt 0:00:00]} 61. c6 {[%emt 0:00:00] normal} 1-0

[Event "-chT Youth Countries 2019"]
[Site "Wuerzburg"]
[Date "2019.10.06"]
[Round "7.3"]
[White "Grund, Sebastian"]
[Black "Tschernatsch, Johannes"]
[Result "0-1"]
[ECO "E69"]
[WhiteElo "2054"]
[BlackElo "2132"]
[Annotator "ChessBase"]
[PlyCount "205"]
[EventDate "2019.10.02"]
[EventType "team-tourn"]
[EventRounds "7"]
[EventCountry "GER"]
[SourceTitle "playchess.com"]
[Source "ChessBase"]
[SourceQuality "1"]
[WhiteTeam "Thüringen"]
[BlackTeam "Brandenburg/Berlin"]
[TimeControl "40/5400+30:1800+30"]

1. d4 Nf6 {[%emt 0:00:00]} 2. Nf3 {[%emt 0:00:00]} g6 {[%emt 0:00:00]} 3. c4 {[%emt 0:00:00]} Bg7 {[%emt 0:00:00]} 4. Nc3 {[%emt 0:00:00]} O-O {[%emt 0:00:00]} 5. e4 {[%emt 0:00:09]} d6 {[%emt 0:00:08]} 6. g3 {[%emt 0:00:06]} Nbd7 {[%emt 0:01:21]} 7. Bg2 {[%emt 0:00:08]} e5 {[%emt 0:00:10]} 8. O-O {[%emt 0:00:06]} c6 9. h3 {[%emt 0:00:23]} Qb6 {[%emt 0:00:45]} 10. c5 {[%emt 0:04:04]} dxc5 {[%emt 0:00:07]} 11. dxe5 {[%emt 0:00:05]} Ne8 {[%emt 0:00:31]} 12. Qc2 {[%emt 0:04:14]} Qc7 {[%emt 0:08:25]} 13. Be3 {[%emt 0:18:01]} b6 {[%emt 0:01:51]} 14. b4 {[%emt 0:01:30]} cxb4 {[%emt 0:01:54]} 15. Ne2 {[%emt 0:01:49]} Nxe5 {[%emt 0:01:31]} 16. Nxe5 {[%emt 0:00:38]} Bxe5 {[%emt 0:00:33]} 17. Rac1 {[%emt 0:01:08]} c5 {[%emt 0:01:26]} 18. Bh6 {[%emt 0:00:36]} Bg7 {[%emt 0:00:43]} 19. Bf4 {[%emt 0:02:02]} Qe7 {[%emt 0:01:19]} 20. Rfd1 {[%emt 0:05:44]} Be6 {[%emt 0:02:11]} 21. Qa4 {[%emt 0:05:08]} Rc8 {[%emt 0:06:34]} 22. Qa6 {[%emt 0:02:24]} g5 {[%emt 0:02:45]} 23. Be3 {[%emt 0:00:38]} h6 {[%emt 0:03:54]} 24. f4 {[%emt 0:01:41]} gxf4 {[%emt 0:00:09]} 25. Bxf4 {[%emt 0:03:17]} c4 {[%emt 0:02:45]} 26. Nd4 {[%emt 0:00:39]} c3 {[%emt 0:07:29]} 27. Kh2 {[%emt 0:00:48]} Rc5 {[%emt 0:04:21]} 28. Qe2 {[%emt 0:09:13]} f6 {[%emt 0:12:17]} 29. Be3 {[%emt 0:13:44]} Rc8 {[%emt 0:00:28]} 30. Bf4 {[%emt 0:12:52]} Rf7 {[%emt 0:06:32]} 31. Qh5 {[%emt 0:01:47]} Nc7 {[%emt 0:13:54]} 32. Bxh6 {[%emt 0:01:40]} Bxh6 {[%emt 0:00:43]} 33. Qxh6 {[%emt 0:00:06]} Rh7 {[%emt 0:00:51]} 34. Qf4 {[%emt 0:00:52]} Rf8 {[%emt 0:01:52]} 35. Nf5 {[%emt 0:05:04]} Qc5 {[%emt 0:02:55]} 36. Qg4+ {[%emt 0:01:40]} Kh8 {[%emt 0:00:29]} 37. Qg6 {[%emt 0:00:19]} Qe5 {[%emt 0:00:54]} 38. Qg4 {[%emt 0:02:41]} Rg8 {[%emt 0:00:26]} 39. Qf3 {[%emt 0:00:10]} Bxa2 {[%emt 0:00:17]} 40. Nd4 {[%emt 0:02:33]} Be6 {[%emt 0:05:31]} 41. Nc6 {[%emt 0:04:09]} Qg5 {[%emt 0:00:03]} 42. Nxb4 {[%emt 0:00:33]} Bg4 {[%emt 0:00:33]} 43. Qxc3 {[%emt 0:00:36]} Bxd1 {[%emt 0:00:07]} 44. Rxd1 {[%emt 0:00:04]} Rhg7 {[%emt 0:02:12]} 45. g4 {[%emt 0:00:42]} Qe5+ {[%emt 0:01:10]} 46. Qxe5 {[%emt 0:00:09]} fxe5 {[%emt 0:00:03]} 47. Nc6 {[%emt 0:00:14]} a5 {[%emt 0:01:17]} 48. Nxe5 {[%emt 0:01:26]} b5 {[%emt 0:00:43]} 49. Nc6 {[%emt 0:01:08]} a4 {[%emt 0:00:22]} 50. e5 {[%emt 0:00:17]} a3 {[%emt 0:02:28]} 51. Nb4 {[%emt 0:01:26]} Ne6 {[%emt 0:02:20]} 52. Rd6 {[%emt 0:00:47]} Nf4 {[%emt 0:01:18]} 53. Be4 {[%emt 0:00:50]} Re8 {[%emt 0:02:20]} 54. Rf6 {[%emt 0:02:03]} Ne2 {[%emt 0:01:18]} 55. Rh6+ {[%emt 0:01:34]} Kg8 56. Bd5+ {[%emt 0:00:08]} Kf8 {[%emt 0:00:29]} 57. Rf6+ {[%emt 0:00:07]} Ke7 {[%emt 0:00:18]} 58. Bc6 {[%emt 0:00:08]} a2 {[%emt 0:02:20]} 59. Nxa2 {[%emt 0:02:08]} Rf8 {[%emt 0:00:29]} 60. Rxf8 {[%emt 0:00:33]} Kxf8 {[%emt 0:00:04]} 61. Bxb5 {[%emt 0:00:09]} Nd4 {[%emt 0:00:08]} 62. Bc4 {[%emt 0:02:28]} Nf3+ {[%emt 0:00:07]} 63. Kg3 {[%emt 0:00:11]} Nxe5 {[%emt 0:00:02]} 64. Be6 {[%emt 0:00:24]} Ra7 {[%emt 0:01:22]} 65. Nb4 {[%emt 0:00:53]} Ra3+ {[%emt 0:00:23]} 66. Kh4 {[%emt 0:02:33]} Nf3+ {[%emt 0:00:23]} 67. Kh5 {[%emt 0:00:11]} Nd4 {[%emt 0:00:14]} 68. Bf5 {[%emt 0:03:22]} Rxh3+ {[%emt 0:00:14]} 69. Kg6 {[%emt 0:00:07]} Rc3 {[%emt 0:00:51]} 70. Nd5 {[%emt 0:00:38]} Rc6+ {[%emt 0:00:26]} 71. Kg5 {[%emt 0:00:49]} Kg7 {[%emt 0:00:15]} 72. Ne7 {[%emt 0:00:43]} Rc5 {[%emt 0:00:13]} 73. Ng6 {[%emt 0:00:57]} Ra5 {[%emt 0:00:53]} 74. Ne7 {[%emt 0:02:17]} Ne6+ {[%emt 0:00:25]} 75. Kh4 {[%emt 0:00:18]} Nd4 {[%emt 0:00:26]} 76. Kg5 {[%emt 0:00:06]} Rc5 {[%emt 0:01:03]} 77. Ng6 {[%emt 0:00:09]} Nc6 {[%emt 0:02:19]} 78. Nf4 {[%emt 0:00:13]} Nd8 {[%emt 0:00:42]} 79. Nh5+ {[%emt 0:00:38]} Kf7 {[%emt 0:02:09]} 80. Nf4 {[%emt 0:00:52]} Ra5 {[%emt 0:01:27]} 81. Kh6 {[%emt 0:00:40]} Nc6 {[%emt 0:01:28]} 82. Bg6+ {[%emt 0:00:27]} Kg8 {[%emt 0:01:14]} 83. Nh5 {[%emt 0:03:48]} Ne7 {[%emt 0:01:22]} 84. Nf6+ {[%emt 0:00:33]} Kh8 {[%emt 0:00:09]} 85. Bf7 {[%emt 0:01:04]} Ra1 {[%emt 0:03:50]} 86. g5 {[%emt 0:01:07]} Rh1+ {[%emt 0:01:15]} 87. Nh5 {[%emt 0:02:09]} Rg1 {[%emt 0:03:02]} 88. Nf6 {[%emt 0:00:52]} Nf5+ {[%emt 0:01:20]} 89. Kg6 {[%emt 0:00:10]} Nh4+ {[%emt 0:00:24]} 90. Kh6 {[%emt 0:00:08]} Nf5+ {[%emt 0:05:15]} 91. Kg6 {[%emt 0:00:05]} Ne7+ {[%emt 0:01:05]} 92. Kh6 {[%emt 0:00:14]} Rf1 {[%emt 0:00:08]} 93. Bg6 {[%emt 0:03:31]} Rh1+ {[%emt 0:03:03]} 94. Bh5 {[%emt 0:00:26]} Rh2 {[%emt 0:03:06]} 95. Ne4 {[%emt 0:01:44]} Ra2 {[%emt 0:03:29]} 96. Bf7 {[%emt 0:01:02]} Rh2+ {[%emt 0:00:30]} 97. Bh5 {[%emt 0:00:06]} Nf5+ {[%emt 0:00:27]} 98. Kg6 {[%emt 0:00:06]} Ng7 {[%emt 0:00:08]} 99. Nf6 {[%emt 0:00:16]} Rg2 {[%emt 0:01:45]} 100. Kh6 {[%emt 0:00:39]} Ne6 {[%emt 0:00:46]} 101. Ne4 {[%emt 0:00:29]} Kg8 {[%emt 0:00:57]} 102. Bf3 {[%emt 0:01:07] normal} Rh2+ {[%emt 0:00:26]} 103. Bh5 {[%emt 0:00:12] normal} 0-1

[Event "-chT Youth Countries 2019"]
[Site "Wuerzburg"]
[Date "2019.10.06"]
[Round "7.3"]
[White "Wu, Leon"]
[Black "Lohr, Maximilian"]
[Result "1-0"]
[ECO "C76"]
[WhiteElo "2009"]
[BlackElo "1996"]
[Annotator "NA"]
[PlyCount "76"]
[EventDate "2019.10.02"]
[EventType "team-tourn"]
[EventRounds "7"]
[EventCountry "GER"]
[SourceTitle "playchess.com"]
[Source "ChessBase"]
[SourceQuality "1"]
[WhiteTeam "Baden 2"]
[BlackTeam "Bayern 2"]
[TimeControl "40/5400+30:1800+30"]

1. e4 {[%emt 0:00:00]} e5 {[%emt 0:00:00]} 2. Nf3 {[%emt 0:00:00]} Nc6 {[%emt 0:00:00]} 3. Bb5 {[%emt 0:00:06]} a6 {[%emt 0:00:00]} 4. Ba4 {[%emt 0:00:03]} d6 {[%emt 0:00:01]} 5. c3 {[%emt 0:00:17]} g6 {[%emt 0:00:34]} 6. d4 {[%emt 0:00:13]} Bd7 {[%emt 0:00:10]} 7. O-O {[%emt 0:00:20] unterminated} Bg7 {[%emt 0:01:12] unterminated} 8. Be3 {[%emt 0:01:26]} Nf6 {[%emt 0:00:55] unterminated} 9. Bc2 {[%emt 0:04:32] C76: Ruy Lopez: Deferred Steinitz: 5 c3 Bd7 6 d4 g6} (9. Nbd2 Ng4 10. Bg5 f6 11. Bh4 Qe7 12. b4 h5 13. Bg3 O-O 14. Re1 Nh6 15. Nf1 g5 16. Bb3+ Kh7 17. dxe5 Nxe5 18. Bxe5 fxe5 {½-½ (61) Yu,Y (2751)-Mamedyarov,S (2799) Huaian 2017}) 9... O-O {[%emt 0:00:43]} 10. h3 {[%emt 0:01:18] unterminated} Nh5 {[%emt 0:14:36] unterminated} 11. Qd2 $146 {[%emt 0:09:30] unterminated} ({Predecessor:} 11. Nbd2 Nf4 12. Re1 Qf6 13. Nc4 Rad8 14. a4 g5 15. Bxf4 gxf4 16. dxe5 dxe5 17. Qe2 Kh8 18. b4 Qg6 19. Nh4 {0-1 (46) Tiviakov,S (2585)-Giorgadze,G Gausdal 1992}) 11... f5 {[%emt 0:15:23] unterminated} 12. dxe5 {[%emt 0:07:01] unterminated} f4 {[%emt 0:26:23] unterminated} 13. Bd4 {[%emt 0:03:15] unterminated} dxe5 {[%emt 0:09:26] unterminated} 14. Bb3+ {[%emt 0:05:22] unterminated} Kh8 {[%emt 0:00:24]} 15. Bc5 {[%emt 0:00:14]} Qc8 {[%emt 0:06:29]} 16. Bxf8 {[%emt 0:02:53]} Bxf8 {[%emt 0:00:05]} 17. Qd5 {[%emt 0:01:40]} Nf6 {[%emt 0:05:02]} 18. Qd3 {[%emt 0:16:32]} Bxh3 {[%emt 0:11:59]} 19. gxh3 {[%emt 0:08:25]} Qxh3 {[%emt 0:00:06]} 20. Ne1 {[%emt 0:00:13]} Qg4+ {[%emt 0:03:51]} 21. Kh2 {[%emt 0:00:38]} Rd8 {[%emt 0:01:36]} 22. Qf3 {[%emt 0:02:49]} Qc8 {[%emt 0:01:33]} 23. Ng2 {[%emt 0:01:20]} g5 {[%emt 0:00:10]} 24. Rd1 {[%emt 0:01:41]} g4 {[%emt 0:00:40]} 25. Rxd8 {[%emt 0:00:25]} Qxd8 {[%emt 0:00:06]} 26. Qd1 {[%emt 0:01:10]} Qe8 {[%emt 0:01:04]} 27. Kg1 {[%emt 0:08:25]} Bc5 {[%emt 0:00:05]} 28. Nd2 {[%emt 0:01:15]} Qh5 {[%emt 0:00:55]} 29. Be6 {[%emt 0:07:38]} f3 {[%emt 0:00:30]} 30. Ne3 {[%emt 0:01:24]} g3 {[%emt 0:00:31]} 31. Qxf3 {[%emt 0:00:33]} gxf2+ {[%emt 0:00:29]} 32. Kxf2 {[%emt 0:00:33]} Qh2+ {[%emt 0:00:04]} 33. Kf1 {[%emt 0:02:47]} Nh5 {[%emt 0:00:27]} 34. Ke1 {[%emt 0:02:19]} Qg1+ {[%emt 0:00:04]} 35. Nef1 {[%emt 0:00:40] unterminated} Nf4 {[%emt 0:00:52]} 36. Bf5 {[%emt 0:02:04]} Be3 {[%emt 0:00:54]} 37. Kd1 $18 {[%emt 0:01:16]} Bxd2 {[%emt 0:00:37]} 38. Kxd2 {[%emt 0:00:13]} Na5 {normal} 1-0